lending/lending_fUSD_20260204
["ID","MTS","AMOUNT","RATE_DAILY","PERIOD"]
[404488235,1770207049611,-300.0,0.00017799,2]
[404488236,1770207049622,-191.94193595,0.000178,2]
[404488237,1770207049632,-10142.1213,0.000178,2]
[404488238,1770207049642,-500.0,0.00017808,2]
[404488239,1770207049652,-206.0,0.00017819,2]
[404488240,1770207049661,-200.0,0.00017824,2]
[404488241,1770207049671,-200.0,0.00017824,2]
[404488242,1770207049680,-206.0,0.00017829,2]
[404488243,1770207049690,-500.0,0.00017863,2]
[404488244,1770207049699,-3500.0,0.00017888,2]
[404488245,1770207049709,-1222.7079547,0.00017888,2]
[404488246,1770207049718,-300.0,0.00017899,2]
[404488247,1770207049728,-696.64,0.00017899,2]
[404488248,1770207049737,-693.64,0.00017899,2]
[404488249,1770207049746,-507.78,0.00017899,2]
[404488250,1770207049756,-160.0,0.000179,3]
[404488251,1770207049765,-5000.0,0.000179,2]
[404488252,1770207049775,-1164.2238217,0.000179,3]
[404488253,1770207049784,-25000.0,0.000179,3]
[404488254,1770207049794,-25000.0,0.000179,3]
[404488255,1770207049804,-10000.0,0.000179,2]
[404488256,1770207049814,-759.66326108,0.000179,2]
[404488257,1770207049824,-951.93465804,0.000179,2]
[404488258,1770207049833,-2000.0,0.000179,2]
[404488259,1770207049842,-3507.70665911,0.000179,2]
[404488260,1770207049851,-4053.24271575,0.000179,2]
[404488261,1770207049860,-196.89300111,0.000179,2]
[404488262,1770207049870,-2659.32543792,0.000179,2]
[404488263,1770207049879,-663.97651217,0.000179,2]
[404488264,1770207049889,-499.78494222,0.000179,2]
[404488265,1770207049898,-206.0,0.00017904,2]
[404488266,1770207049908,-500.0,0.00017918,2]
[404488267,1770207049918,-206.0,0.00017949,2]
[404488268,1770207049928,-1627.575326,0.00017958,7]
[404488269,1770207049938,-206.0,0.00017971,2]
[404488270,1770207049950,-300.0,0.00017972,2]
[404488271,1770207049960,-500.0,0.00017972,2]
[404488272,1770207049969,-465.90748908,0.00017973,2]
[404488273,1770207049979,-500.0,0.00017973,2]
[404488274,1770207049989,-500.0,0.00017973,2]
[404488275,1770207049999,-496.6693993,0.00017973,2]
[404488276,1770207050009,-160.61789884,0.00017973,2]
[404488277,1770207050019,-500.0,0.00017973,2]
[404488278,1770207050029,-500.0,0.00017973,2]
[404488279,1770207050039,-500.0,0.00017973,2]
[404488280,1770207050049,-500.68854041,0.00017973,2]
[404488281,1770207050058,-500.0,0.00017973,2]
[404488282,1770207050069,-336.59163653,0.00017973,2]
[404488283,1770207050079,-500.96948842,0.00017973,2]
[404488284,1770207050091,-500.0,0.00017973,2]
[404488285,1770207050101,-501.02089422,0.00017973,2]
[404488286,1770207050110,-500.0,0.00017973,2]
[404488287,1770207050119,-500.0,0.00017973,2]
[404488288,1770207050129,-500.0,0.00017973,2]
[404488289,1770207050139,-151.18993016,0.00017973,2]
[404488290,1770207050148,-500.0,0.00017973,2]
[404488291,1770207050159,-500.0,0.00017973,2]
[404488292,1770207050169,-206.0,0.0001798,2]
[404488293,1770207050183,-14061.5278279,0.0001799,2]
[404488294,1770207050203,-311.16706059,0.0001799,2]
[404488295,1770207050214,-295.42555631,0.0001799,2]
[404488296,1770207050225,-338.39253339,0.0001799,2]
[404488297,1770207050235,-300.0,0.00017998,2]
[404488298,1770207050297,-300.0,0.00017998,2]
[404488299,1770207050307,-300.0,0.00017999,2]
[404488300,1770207050316,-300.0,0.00017999,2]
[404488301,1770207050326,-1008.22906043,0.00017999,4]
[404488302,1770207050335,-11181.99469249,0.00017999,4]
[404488303,1770207050344,-696.64,0.00017999,2]
[404488304,1770207050353,-696.64,0.00017999,2]
[404488305,1770207050362,-696.64,0.00017999,2]
[404488306,1770207050371,-696.64,0.00017999,2]
[404488307,1770207050380,-696.68629093,0.00017999,2]
[404488308,1770207050390,-693.64,0.00017999,2]
[404488309,1770207050400,-693.64,0.00017999,2]
[404488310,1770207050409,-693.64,0.00017999,2]
[404488311,1770207050419,-693.64,0.00017999,2]
[404488312,1770207050428,-693.68,0.00017999,2]
[404488313,1770207050437,-507.78,0.00017999,2]
[404488314,1770207050446,-507.78,0.00017999,2]
[404488315,1770207050456,-507.78,0.00017999,2]
[404488316,1770207050465,-507.78,0.00017999,2]
[404488317,1770207050474,-507.83,0.00017999,2]
[404488318,1770207050483,-390.74983131,0.00017999,2]
[404488319,1770207050492,-13717.69048011,0.00017999,2]
[404488320,1770207050501,-300.0,0.00018,2]
[404488321,1770207050510,-153.0,0.00018,2]
[404488322,1770207050520,-153.0,0.00018,2]
[404488323,1770207050529,-153.0,0.00018,2]
[404488324,1770207050539,-2111965.80333097,0.00018,2]
[404488325,1770207051406,-575.2767405,0.00018,2]
[404488326,1770207051422,-5499.27960101,0.00018,2]
[404488327,1770207051474,-519.92,0.00018,2]
[404488328,1770207051485,-6000.0,0.00018,2]
[404488329,1770207051497,-16170.96711847,0.00018,2]
[404488330,1770207051510,-4123.11221533,0.00018,2]
[404488331,1770207051521,-414.73118344,0.00018,2]
[404488332,1770207051537,-6279.0,0.00018,2]
[404488411,1770207391572,5467.04170256,0.00023099,120]
[404488440,1770207788567,158.05,8e-05,2]
[404488445,1770207927040,455.09912751,0.00023,120]
[404488446,1770207930900,2755.80984986,0.0002,120]
[404488449,1770207974920,5081.86943606,0.000209,30]
[404488450,1770208012122,-355.41841604,0.00011233,2]
[404488453,1770208063900,310.25932007,0.0002,120]
[404488454,1770208063938,1709.74067993,0.0002,120]
[404488460,1770208110793,788.80543513,0.00021,120]
[404488461,1770208110831,11.19456487,0.00021,120]
[404488467,1770208117530,163.8982661,0.0002,120]
[404488495,1770208205379,180.0,0.00021843,120]
[404488515,1770208231916,-612.35383556,0.00011233,2]
[404488520,1770208231972,-863.60736778,0.00011233,2]
[404488521,1770208231983,-575.6218544,0.00011233,2]
[404488522,1770208232029,-404.53844161,0.00011233,2]
[404488523,1770208232088,-450.99464425,0.00011233,2]
[404488524,1770208232101,-333.19544036,0.00011233,2]
[404488525,1770208232111,-242.0,0.00011233,2]
[404488526,1770208232122,-150.0,0.00011819,2]
[404488527,1770208232133,-485.31,0.00011831,2]
[404488528,1770208232143,-193.34,0.00011874,2]
[404488530,1770208232153,-770.57,0.0001193,2]
[404488532,1770208232162,-1567.1,0.00012055,2]
[404488534,1770208232171,-169.62,0.00012077,2]
[404488535,1770208232181,-500.0,0.0001232,2]
[404488536,1770208232190,-195.0,0.00012356,2]
[404488537,1770208232200,-195.0,0.00012356,2]
[404488538,1770208232209,-619.07991,0.00012666,2]
[404488539,1770208232218,-1200.0,0.0001267,2]
[404488540,1770208232227,-263.30640676,0.00012671,2]
[404488541,1770208232237,-2801.85527546,0.00012671,2]
[404488542,1770208232246,-499.78494222,0.00012671,2]
[404488543,1770208232255,-2801.85527546,0.00012671,2]
[404488544,1770208232264,-196.25665993,0.00012671,2]
[404488545,1770208232273,-663.97651218,0.00012671,2]
[404488546,1770208232282,-8822.01003146,0.00012673,2]
[404488547,1770208232291,-338.39253339,0.00012713,2]
[404488548,1770208232300,-151.0,0.0001272,2]
[404488549,1770208232309,-150.0,0.00012722,2]
[404488551,1770208232318,-14374.75431792,0.00012723,2]
[404488553,1770208232330,-6688.71301509,0.00012723,2]
[404488555,1770208232341,-3830.35164625,0.00012723,2]
[404488557,1770208232356,-462.11065713,0.00012723,2]
[404488563,1770208238093,-801.115,0.00012723,2]
[404488787,1770208240437,-4464.44545893,0.00012723,2]
[404488789,1770208240452,-5218.36329611,0.00012723,2]
[404488793,1770208240483,-3464160.14660857,0.00012723,2]
[404488795,1770208240492,-166.66,0.00012771,2]
[404488797,1770208240501,-1279.0,0.00012786,2]
[404488799,1770208240510,-1089.64825227,0.00012822,2]
[404488801,1770208240520,-2659.32543792,0.00012822,2]
[404488803,1770208240529,-1074.23536112,0.00012823,2]
[404488805,1770208240539,-4701.45178143,0.0001284,2]
[404488807,1770208240548,-2500.0,0.0001285,2]
[404488809,1770208240557,-949.57907636,0.00012878,2]
[404488811,1770208240567,-197.72,0.00012892,2]
[404488813,1770208240576,-472.03848132,0.00012921,2]
[404488815,1770208240586,-647.52299351,0.00012921,2]
[404488817,1770208240595,-359.41491161,0.00012921,2]
[404488819,1770208240604,-500.0,0.00012921,2]
[404488821,1770208240613,-500.0,0.00012921,2]
[404488823,1770208240622,-500.0,0.00012921,2]
[404488825,1770208240631,-500.0,0.00012921,2]
[404488827,1770208240641,-500.0,0.00012921,2]
[404488829,1770208240649,-211.07776199,0.00012921,2]
[404488831,1770208240659,-500.0,0.00012921,2]
[404488833,1770208240667,-500.0,0.00012921,2]
[404488835,1770208240677,-500.0,0.00012921,2]
[404488836,1770208240686,-500.0,0.00012921,2]
[404488838,1770208240695,-500.0,0.00012921,2]
[404488840,1770208240704,-500.0,0.00012921,2]
[404488842,1770208240713,-500.0,0.00012921,2]
[404488844,1770208240723,-500.0,0.00012921,2]
[404488846,1770208240732,-500.0,0.00012921,2]
[404488848,1770208240742,-500.0,0.00012921,2]
[404488850,1770208240751,-500.0,0.00012921,2]
[404488852,1770208240760,-500.0,0.00012921,2]
[404488854,1770208240770,-500.0,0.00012921,2]
[404488856,1770208240779,-156.79,0.00012921,2]
[404488858,1770208240788,-500.0,0.00012922,2]
[404488860,1770208240797,-200.0,0.00012942,2]
[404488862,1770208240806,-151.0,0.00012942,2]
[404488864,1770208240815,-151.0,0.00012942,2]
[404488866,1770208240825,-151.0,0.00012942,2]
[404488868,1770208240835,-151.0,0.00012942,2]
[404488870,1770208240844,-151.0,0.00012942,2]
[404488872,1770208240853,-500.0,0.00012942,2]
[404488874,1770208240864,-151.0,0.00012942,2]
[404488876,1770208240873,-510.88207769,0.00012942,2]
[404488878,1770208240883,-151.0,0.00012942,2]
[404488880,1770208240893,-151.0,0.00012942,2]
[404488882,1770208240902,-151.0,0.00012942,2]
[404488884,1770208240911,-151.0,0.00012942,2]
[404488886,1770208240921,-151.0,0.00012942,2]
[404488888,1770208240930,-500.0,0.00012942,2]
[404488890,1770208240939,-202.08466483,0.00012942,2]
[404488892,1770208240948,-500.0,0.00012942,2]
[404488894,1770208240956,-500.0,0.00012942,2]
[404488896,1770208240965,-500.0,0.00012942,2]
[404488898,1770208240974,-500.0,0.00012942,2]
[404488900,1770208240983,-500.0,0.00012942,2]
[404488902,1770208240991,-500.0,0.00012942,2]
[404488904,1770208241001,-500.0,0.00012942,2]
[404488906,1770208241009,-500.0,0.00012942,2]
[404488908,1770208241018,-500.0,0.00012942,2]
[404488910,1770208241027,-500.0,0.00012942,2]
[404488912,1770208241036,-500.0,0.00012942,2]
[404488913,1770208241045,-1059.341,0.00012949,2]
[404488916,1770208241055,-154.955,0.00012949,2]
[404488918,1770208241064,-1000.0,0.0001295,2]
[404488920,1770208241073,-14216.56,0.0001295,2]
[404488922,1770208241083,-259.19,0.00013,2]
[404488924,1770208241092,-1178.63534639,0.00013049,3]
[404488926,1770208241103,-1178.63534639,0.00013049,3]
[404488928,1770208241113,-166.66,0.00013192,2]
[404488930,1770208241122,-156.79,0.00013195,2]
[404488932,1770208241131,-500.0,0.00013196,2]
[404488934,1770208241140,-4701.45178142,0.00013402,2]
[404488936,1770208241149,-2801.85527541,0.00013418,2]
[404488938,1770208241158,-2801.85527541,0.00013418,2]
[404488940,1770208241167,-2361.0,0.00013445,2]
[404488941,1770208241176,-150.0,0.00013445,2]
[404488943,1770208241185,-150.0,0.00013445,2]
[404488945,1770208241194,-150.0,0.00013445,2]
[404488947,1770208241203,-150.0,0.00013445,2]
[404488949,1770208241212,-150.0,0.00013445,2]
[404488951,1770208241221,-150.0,0.00013445,2]
[404488953,1770208241230,-500.0,0.00013445,2]
[404488955,1770208241239,-150.0,0.00013445,2]
[404488957,1770208241247,-200.0,0.00013445,2]
[404488959,1770208241256,-150.0,0.00013445,2]
[404488961,1770208241266,-150.0,0.00013445,2]
[404488964,1770208241275,-500.0,0.00013445,2]
[404488965,1770208241284,-500.0,0.00013445,2]
[404488968,1770208241294,-577.0,0.00013445,2]
[404488970,1770208241303,-154.44018454,0.00013445,2]
[404488972,1770208241312,-500.0,0.00013445,2]
[404488974,1770208241322,-150.0,0.00013445,2]
[404488976,1770208241331,-150.0,0.00013445,2]
[404488978,1770208241340,-150.0,0.00013445,2]
[404488980,1770208241349,-150.0,0.00013445,2]
[404488982,1770208241358,-156.79,0.00013469,2]
[404488984,1770208241367,-500.0,0.0001347,2]
[404488986,1770208241376,-338.39253339,0.0001349,2]
[404488988,1770208241385,-500.0,0.0001349,2]
[404488990,1770208241396,-2361.0,0.000135,2]
[404488992,1770208241405,-150.0,0.000135,2]
[404488994,1770208241414,-200.0,0.000135,2]
[404488996,1770208241423,-150.0,0.000135,2]
[404488998,1770208241432,-150.0,0.000135,2]
[404489000,1770208241443,-500.0,0.000135,2]
[404489002,1770208241453,-150.0,0.000135,2]
[404489004,1770208241462,-500.0,0.000135,2]
[404489006,1770208241471,-500.0,0.000135,2]
[404489008,1770208241481,-577.0,0.000135,2]
[404489010,1770208241490,-500.0,0.000135,2]
[404489012,1770208241499,-150.0,0.000135,2]
[404489014,1770208241508,-150.0,0.000135,2]
[404489016,1770208241519,-150.0,0.000135,2]
[404489018,1770208241528,-500.0,0.00013507,2]
[404489020,1770208241537,-2361.0,0.00013555,2]
[404489022,1770208241547,-200.0,0.00013555,2]
[404489024,1770208241556,-170.0,0.00013555,2]
[404489026,1770208241572,-200.0,0.00013555,2]
[404489028,1770208241581,-418.0,0.00013555,2]
[404489030,1770208241591,-200.0,0.00013555,2]
[404489032,1770208241600,-482.0,0.00013555,2]
[404489034,1770208241609,-179.4054645,0.00013555,2]
[404489036,1770208241617,-577.0,0.00013555,2]
[404489038,1770208241626,-361.68385218,0.00013555,2]
[404489040,1770208241636,-200.0,0.00013555,2]
[404489042,1770208241644,-183.0,0.00013555,2]
[404489044,1770208241653,-200.0,0.00013555,2]
[404489046,1770208241662,-1567.1,0.00013562,2]
[404489048,1770208241672,-169.62,0.00013587,2]
[404489050,1770208241680,-2361.0,0.00013609,2]
[404489052,1770208241690,-577.0,0.00013609,2]
[404489054,1770208241700,-166.66,0.00013614,2]
[404489056,1770208241709,-2361.0,0.00013664,2]
[404489058,1770208241718,-577.0,0.00013664,2]
[404489060,1770208241727,-1074.23536107,0.00013669,2]
[404489062,1770208241737,-549.35023034,0.00013698,2]
[404489064,1770208241746,-500.0,0.00013698,2]
[404489065,1770208241755,-500.0,0.00013698,2]
[404489067,1770208241764,-500.0,0.00013698,2]
[404489069,1770208241773,-500.0,0.00013698,2]
[404489071,1770208241782,-392.76776902,0.00013698,2]
[404489073,1770208241791,-500.0,0.00013698,2]
[404489075,1770208241805,-500.0,0.00013698,2]
[404489078,1770208241814,-500.0,0.00013698,2]
[404489079,1770208241824,-500.0,0.00013698,2]
[404489082,1770208241833,-500.0,0.00013698,2]
[404489084,1770208241842,-500.0,0.00013698,2]
[404489086,1770208241852,-500.0,0.00013698,2]
[404489088,1770208241862,-500.0,0.00013698,2]
[404489090,1770208241871,-500.0,0.00013698,2]
[404489092,1770208241880,-500.0,0.00013698,2]
[404489094,1770208241889,-500.0,0.00013698,2]
[404489096,1770208241898,-500.0,0.00013698,2]
[404489098,1770208241907,-500.0,0.00013698,2]
[404489099,1770208241917,-248.79623194,0.00013698,2]
[404489101,1770208241927,-500.0,0.00013698,2]
[404489104,1770208241936,-500.0,0.00013698,2]
[404489106,1770208241946,-500.0,0.00013698,2]
[404489107,1770208241955,-500.0,0.00013698,2]
[404489110,1770208241964,-500.0,0.00013698,2]
[404489111,1770208241973,-500.0,0.00013698,2]
[404489114,1770208241982,-500.0,0.00013698,2]
[404489115,1770208241991,-500.0,0.00013698,2]
[404489117,1770208242002,-500.0,0.00013698,2]
[404489120,1770208242012,-500.0,0.00013698,2]
[404489121,1770208242021,-500.0,0.00013698,2]
[404489123,1770208242031,-500.0,0.00013698,2]
[404489126,1770208242040,-500.0,0.00013698,2]
[404489127,1770208242049,-500.0,0.00013698,2]
[404489129,1770208242060,-500.0,0.00013698,2]
[404489131,1770208242070,-201.21918147,0.00013698,2]
[404489134,1770208242080,-503.3149344,0.00013698,2]
[404489136,1770208242090,-500.0,0.00013698,2]
[404489137,1770208242099,-500.0,0.00013698,2]
[404489139,1770208242108,-500.0,0.00013698,2]
[404489141,1770208242117,-500.0,0.00013698,2]
[404489143,1770208242126,-500.0,0.00013698,2]
[404489145,1770208242135,-500.0,0.00013698,2]
[404489147,1770208242144,-500.0,0.00013698,2]
[404489149,1770208242153,-500.0,0.00013698,2]
[404489151,1770208242161,-500.0,0.00013698,2]
[404489153,1770208242170,-500.0,0.00013698,2]
[404489155,1770208242179,-500.0,0.00013698,2]
[404489157,1770208242188,-516.54058196,0.00013698,2]
[404489159,1770208242197,-500.0,0.00013698,2]
[404489161,1770208242206,-500.0,0.00013698,2]
[404489163,1770208242215,-500.0,0.00013698,2]
[404489165,1770208242225,-500.0,0.00013698,2]
[404489167,1770208242235,-508.97591607,0.00013698,2]
[404489169,1770208242244,-500.0,0.00013698,2]
[404489172,1770208242256,-500.0,0.00013698,2]
[404489174,1770208242266,-500.0,0.00013698,2]
[404489176,1770208242275,-500.0,0.00013698,2]
[404489178,1770208242284,-500.0,0.00013698,2]
[404489180,1770208242293,-500.0,0.00013698,2]
[404489182,1770208242303,-500.0,0.00013698,2]
[404489184,1770208242312,-500.0,0.00013698,2]
[404489186,1770208242321,-500.0,0.00013698,2]
[404489188,1770208242330,-500.0,0.00013698,2]
[404489190,1770208242339,-500.0,0.00013698,2]
[404489192,1770208242348,-500.0,0.00013698,2]
[404489193,1770208242357,-500.0,0.00013698,2]
[404489196,1770208242366,-500.0,0.00013698,2]
[404489197,1770208242375,-500.0,0.00013698,2]
[404489198,1770208242384,-500.0,0.00013698,2]
[404489199,1770208242393,-500.0,0.00013698,2]
[404489200,1770208242402,-403.2474264,0.00013698,2]
[404489201,1770208242410,-500.0,0.00013698,2]
[404489202,1770208242419,-500.0,0.00013698,2]
[404489203,1770208242428,-500.0,0.00013698,2]
[404489204,1770208242438,-500.0,0.00013698,2]
[404489205,1770208242450,-500.0,0.00013698,2]
[404489206,1770208242459,-513.21673603,0.00013698,2]
[404489207,1770208242468,-500.0,0.00013698,2]
[404489209,1770208242478,-500.0,0.00013698,2]
[404489211,1770208242487,-500.0,0.00013698,2]
[404489213,1770208242497,-500.0,0.00013698,2]
[404489215,1770208242505,-500.0,0.00013698,2]
[404489217,1770208242515,-500.0,0.00013698,2]
[404489219,1770208242524,-500.0,0.00013698,2]
[404489221,1770208242533,-500.0,0.00013698,2]
[404489223,1770208242541,-500.0,0.00013698,2]
[404489225,1770208242551,-500.0,0.00013698,2]
[404489227,1770208242559,-500.0,0.00013698,2]
[404489229,1770208242568,-440.71331591,0.00013698,2]
[404489231,1770208242577,-696.64,0.00013698,2]
[404489233,1770208242586,-696.64,0.00013698,2]
[404489235,1770208242599,-696.64,0.00013698,2]
[404489236,1770208242609,-696.64,0.00013698,2]
[404489239,1770208242618,-696.64,0.00013698,2]
[404489241,1770208242627,-696.64,0.00013698,2]
[404489242,1770208242636,-696.64,0.00013698,2]
[404489245,1770208242646,-696.64,0.00013698,2]
[404489247,1770208242655,-696.64,0.00013698,2]
[404489248,1770208242663,-696.64,0.00013698,2]
[404489250,1770208242672,-696.64,0.00013698,2]
[404489253,1770208242681,-696.64,0.00013698,2]
[404489255,1770208242690,-696.64,0.00013698,2]
[404489257,1770208242700,-211.70156732,0.00013698,2]
[404489273,1770208243717,-484.93843268,0.00013698,2]
[404489274,1770208243728,-279.2712673,0.00013698,2]
[404489280,1770208243831,-39.49093515,0.00013698,2]
[404489282,1770208243843,-377.87779755,0.00013698,2]
[404489283,1770208243852,-500.0,0.00013698,2]
[404489285,1770208243862,-491.51300143,0.00013698,2]
[404489286,1770208243890,-8.48699857,0.00013698,2]
[404489287,1770208243900,-429.78010499,0.00013698,2]
[404489302,1770208246129,-671.13814001,0.00013197,2]
[404489303,1770208246186,-156.86185999,0.00013197,2]
[404489304,1770208246196,-70.21989501,0.00013698,2]
[404489305,1770208246205,-500.0,0.00013698,2]
[404489306,1770208246214,-500.0,0.00013698,2]
[404489307,1770208246223,-500.0,0.00013698,2]
[404489308,1770208246233,-348.66560009,0.00013698,2]
[404489309,1770208246244,-151.33439991,0.00013698,2]
[404489310,1770208246253,-500.0,0.00013698,2]
[404489311,1770208246263,-500.0,0.00013698,2]
[404489312,1770208246272,-322.28257272,0.00013698,2]
[404489313,1770208246284,-177.71742728,0.00013698,2]
[404489314,1770208246293,-500.0,0.00013698,2]
[404489315,1770208246302,-500.0,0.00013698,2]
[404489316,1770208246312,-500.0,0.00013698,2]
[404489317,1770208246321,-500.0,0.00013698,2]
[404489318,1770208246331,-500.0,0.00013698,2]
[404489319,1770208246340,-500.0,0.00013698,2]
[404489320,1770208246349,-500.0,0.00013698,2]
[404489321,1770208246358,-500.0,0.00013698,2]
[404489322,1770208246367,-500.0,0.00013698,2]
[404489323,1770208246376,-500.0,0.00013698,2]
[404489324,1770208246385,-500.0,0.00013698,2]
[404489325,1770208246394,-500.0,0.00013698,2]
[404489326,1770208246403,-500.0,0.00013698,2]
[404489327,1770208246412,-502.00686825,0.00013698,2]
[404489328,1770208246421,-684.42,0.00013698,2]
[404489329,1770208246430,-684.42,0.00013698,2]
[404489330,1770208246442,-684.42,0.00013698,2]
[404489331,1770208246451,-347.47238737,0.00013698,2]
[404489332,1770208246462,-336.94761263,0.00013698,2]
[404489333,1770208246471,-651.54621662,0.00013698,2]
[404489334,1770208246482,-32.87378338,0.00013698,2]
[404489335,1770208246491,-684.42,0.00013698,2]
[404489336,1770208246501,-684.42,0.00013698,2]
[404489337,1770208246511,-684.42,0.00013698,2]
[404489338,1770208246521,-684.42,0.00013698,2]
[404489339,1770208246530,-684.42,0.00013698,2]
[404489340,1770208246539,-684.42,0.00013698,2]
[404489341,1770208246548,-684.42,0.00013698,2]
[404489342,1770208246557,-684.42,0.00013698,2]
[404489343,1770208246566,-48.1601935,0.00013698,2]
[404489344,1770208246578,-636.2598065,0.00013698,2]
[404489345,1770208246588,-500.0,0.00013698,2]
[404489346,1770208246597,-100.3534775,0.00013698,2]
[404489347,1770208246801,-399.6465225,0.00013698,2]
[404489348,1770208246811,-500.0,0.00013698,2]
[404489349,1770208246820,-500.0,0.00013698,2]
[404489350,1770208246830,-500.0,0.00013698,2]
[404489351,1770208246839,-500.0,0.00013698,2]
[404489352,1770208246848,-500.0,0.00013698,2]
[404489353,1770208246857,-500.0,0.00013698,2]
[404489354,1770208246867,-441.78086111,0.00013698,2]
[404489355,1770208246878,-58.21913889,0.00013698,2]
[404489356,1770208246887,-500.0,0.00013698,2]
[404489357,1770208246896,-500.0,0.00013698,2]
[404489358,1770208246906,-500.0,0.00013698,2]
[404489359,1770208246915,-500.0,0.00013698,2]
[404489360,1770208246924,-500.0,0.00013698,2]
[404489361,1770208246934,-500.0,0.00013698,2]
[404489362,1770208246943,-500.0,0.00013698,2]
[404489363,1770208246952,-500.0,0.00013698,2]
[404489364,1770208246962,-500.0,0.00013698,2]
[404489365,1770208246972,-170.64,0.00013698,2]
[404489366,1770208246981,-500.0,0.00013698,2]
[404489367,1770208246991,-500.0,0.00013698,2]
[404489368,1770208247000,-500.0,0.00013698,2]
[404489369,1770208247009,-500.0,0.00013698,2]
[404489370,1770208247019,-500.0,0.00013698,2]
[404489371,1770208247029,-500.0,0.00013698,2]
[404489372,1770208247038,-500.0,0.00013698,2]
[404489373,1770208247048,-500.0,0.00013698,2]
[404489374,1770208247057,-500.0,0.00013698,2]
[404489375,1770208247066,-275.31,0.00013698,2]
[404489376,1770208247076,-693.64,0.00013698,2]
[404489377,1770208247085,-693.64,0.00013698,2]
[404489378,1770208247094,-382.82314658,0.00013698,2]
[404489379,1770208247105,-310.81685342,0.00013698,2]
[404489380,1770208247115,-693.64,0.00013698,2]
[404489381,1770208247124,-693.64,0.00013698,2]
[404489382,1770208247134,-693.64,0.00013698,2]
[404489383,1770208247143,-417.97494663,0.00013698,2]
[404489384,1770208247153,-260.0,0.00013698,2]
[404489435,1770209356305,-166.66,0.00010959,2]
[404489436,1770209356330,-166.66,0.00011178,2]
[404489437,1770209356354,-150.0,0.00011333,2]
[404489438,1770209356378,-166.66,0.00011397,2]
[404489439,1770209356400,-166.66,0.00011615,2]
[404489440,1770209356422,-166.66,0.00011834,2]
[404489442,1770209432083,-249.0,0.00012053,2]
[404489443,1770209432092,-166.66,0.00012053,2]
[404489444,1770209432102,-152.03197312,0.00012089,2]
[404489446,1770209432131,-47.96802688,0.00012089,2]
[404489447,1770209432140,-248.10855082,0.00012114,2]
[404489448,1770209432152,-714.96934667,0.00012114,2]
[404489449,1770209432163,-315.92210251,0.00012114,2]
[404489450,1770209432173,-187.33368447,0.00012121,2]
[404489451,1770209432182,-300.0,0.00012195,2]
[404489452,1770209432192,-300.0,0.00012195,2]
[404489453,1770209432202,-300.0,0.00012195,2]
[404489454,1770209432212,-1200.0,0.00012195,2]
[404489455,1770209432223,-2124.94421302,0.00012196,2]
[404489456,1770209432247,-1405.5854104,0.00012196,2]
[404489457,1770209432256,-2659.32543792,0.00012196,2]
[404489458,1770209432266,-175.5376045,0.00012196,2]
[404489459,1770209432276,-333.18996148,0.00012196,2]
[404489460,1770209432286,-300.0,0.0001222,2]
[404489461,1770209432295,-150.0,0.00012222,2]